[Event "Titled Tuesday Blitz November 15 Early 2022"]
[White "Bluebaum, Matthias"]
[Black "Firouzja, Alireza"]
[WhiteFideId "24651516"]
[BlackFideId "12573981"]
[WhiteElo "2633"]
[BlackElo "2903"]
[Result "0-1"]
[Round "10"]
[TimeControl "180+1"]
[Date "2022.11.15"]
[WhiteClock "0:00:07"]
[BlackClock "0:00:16"]

1. d4 {[%clk 0:03:00]}  Nf6 {[%clk 0:03:00]} 2. c4 {[%clk 0:03:00]}  g6 {[%clk 0:03:00]} 3. Nc3 {[%clk 0:03:01]}  Bg7 {[%clk 0:03:01]} 4. e4 {[%clk 0:03:01]}  d6 {[%clk 0:03:02]} 5. Nf3 {[%clk 0:03:02]}  O-O {[%clk 0:03:02]} 6. Be2 {[%clk 0:03:03]}  e5 {[%clk 0:02:54]} 7. Be3 {[%clk 0:03:03]}  Ng4 {[%clk 0:02:38]} 8. Bg5 {[%clk 0:03:03]}  f6 {[%clk 0:02:38]} 9. Bh4 {[%clk 0:03:04]}  Nc6 {[%clk 0:02:35]} 10. d5 {[%clk 0:03:04]}  Ne7 {[%clk 0:02:34]} 11. Nd2 {[%clk 0:03:05]}  h5 {[%clk 0:02:33]} 12. h3 {[%clk 0:02:46]}  Nh6 {[%clk 0:02:33]} 13. g4 {[%clk 0:02:37]}  hxg4 {[%clk 0:02:33]} 14. hxg4 {[%clk 0:02:38]}  Nf7 {[%clk 0:02:33]} 15. f3 {[%clk 0:02:37]}  c6 {[%clk 0:02:27]} 16. Qc2 {[%clk 0:02:34]}  Ng5 {[%clk 0:01:56]} 17. O-O-O {[%clk 0:02:31]}  Bh6 {[%clk 0:01:56]} 18. Kb1 {[%clk 0:02:31]}  c5 {[%clk 0:01:51]} 19. Bg3 {[%clk 0:02:26]}  Nf7 {[%clk 0:01:45]} 20. Rh2 {[%clk 0:02:17]}  Kg7 {[%clk 0:01:29]} 21. Rdh1 {[%clk 0:02:18]}  Rh8 {[%clk 0:01:30]} 22. Nb3 {[%clk 0:01:51]}  Bd7 {[%clk 0:01:29]} 23. Qd1 {[%clk 0:01:36]}  Qc7 {[%clk 0:01:28]} 24. Qf1 {[%clk 0:01:37]}  Bf4 {[%clk 0:01:26]} 25. Rxh8 {[%clk 0:01:32]}  Rxh8 {[%clk 0:01:25]} 26. Rxh8 {[%clk 0:01:33]}  Nxh8 {[%clk 0:01:26]} 27. Be1 {[%clk 0:01:27]}  Nf7 {[%clk 0:01:26]} 28. Nc1 {[%clk 0:01:27]}  Qd8 {[%clk 0:01:20]} 29. Nd3 {[%clk 0:01:27]}  Be3 {[%clk 0:01:18]} 30. Qh1 {[%clk 0:01:23]}  a6 {[%clk 0:01:16]} 31. a4 {[%clk 0:01:23]}  Bd4 {[%clk 0:01:13]} 32. Bd2 {[%clk 0:01:20]}  Bxc3 {[%clk 0:00:58]} 33. Bxc3 {[%clk 0:01:17]}  Bxa4 {[%clk 0:00:58]} 34. f4 {[%clk 0:01:09]}  g5 {[%clk 0:00:58]} 35. fxe5 {[%clk 0:01:00]}  fxe5 {[%clk 0:00:58]} 36. Ne1 {[%clk 0:00:52]}  Ng6 {[%clk 0:00:55]} 37. Ng2 {[%clk 0:00:41]}  Nf4 {[%clk 0:00:55]} 38. Bf3 {[%clk 0:00:35]}  Qh8 {[%clk 0:00:41]} 39. Qxh8+ {[%clk 0:00:18]}  Kxh8 {[%clk 0:00:42]} 40. Ne3 {[%clk 0:00:19]}  Bb3 {[%clk 0:00:41]} 41. Ba5 {[%clk 0:00:16]}  Ba4 {[%clk 0:00:22]} 42. Ka2 {[%clk 0:00:15]}  Bd7 {[%clk 0:00:22]} 43. b3 {[%clk 0:00:15]}  b5 {[%clk 0:00:20]} 44. Kb2 {[%clk 0:00:14]}  Kg7 {[%clk 0:00:21]} 45. Bc7 {[%clk 0:00:14]}  Kf6 {[%clk 0:00:21]} 46. Ba5 {[%clk 0:00:14]}  Ke7 {[%clk 0:00:21]} 47. b4 {[%clk 0:00:09]}  cxb4 {[%clk 0:00:15]} 48. Kb3 {[%clk 0:00:08]}  Nd3 {[%clk 0:00:13]} 49. Kc2 {[%clk 0:00:04]}  Ne1+ {[%clk 0:00:14]} 50. Kb3 {[%clk 0:00:04]}  Nxf3 {[%clk 0:00:15]} 51. Kxb4 {[%clk 0:00:03]}  bxc4 {[%clk 0:00:14]} 52. Nxc4 {[%clk 0:00:04]}  Bxg4 {[%clk 0:00:14]} 53. Nb6 {[%clk 0:00:04]}  Bd7 {[%clk 0:00:14]} 54. Na8 {[%clk 0:00:05]}  g4 {[%clk 0:00:14]} 55. Nb6 {[%clk 0:00:05]}  g3 {[%clk 0:00:15]} 56. Na8 {[%clk 0:00:06]}  g2 {[%clk 0:00:15]} 57. Bb6 {[%clk 0:00:07]}  Nd4 {[%clk 0:00:15]} 58. Bxd4 {[%clk 0:00:06]}  exd4 {[%clk 0:00:16]} 59. e5 {[%clk 0:00:06]}  Nxe5 {[%clk 0:00:16]} 60. Ka5 {[%clk 0:00:07]}  g1=Q {[%clk 0:00:16]} 61. Kb6 {[%clk 0:00:07]}  d3+ {[%clk 0:00:17]} 62. Kb7 {[%clk 0:00:08]}  Qc5 {[%clk 0:00:16]} 63. Nb6 {[%clk 0:00:08]}  Nc4 {[%clk 0:00:15]} 64. Ka7 {[%clk 0:00:06]}  Qxb6+ {[%clk 0:00:15]} 65. Ka8 {[%clk 0:00:06]}  Qd8+ {[%clk 0:00:16]} 66. Ka7 {[%clk 0:00:07]}  Qc7+ {[%clk 0:00:16]} 67. Ka8 {[%clk 0:00:07]}  Nb6# {[%clk 0:00:16]} 0-1


[Site "https://www.chess.com"]

[Event "Titled Tuesday Blitz November 15 Early 2022"]
[White "Boros, Denes"]
[Black "Melian, Juan Sebastian"]
[WhiteFideId "722340"]
[BlackFideId "3706575"]
[WhiteElo "2823"]
[BlackElo "2589"]
[Result "1-0"]
[Round "10"]
[TimeControl "180+1"]
[Date "2022.11.16"]
[WhiteClock "0:00:14"]
[BlackClock "0:00:02"]

1. d4 {[%clk 0:03:00]}  Nf6 {[%clk 0:02:54]} 2. Nc3 {[%clk 0:03:00]}  d6 {[%clk 0:02:48]} 3. Nf3 {[%clk 0:02:59]}  Nc6 {[%clk 0:02:45]} 4. Bg5 {[%clk 0:02:55]}  g6 {[%clk 0:02:42]} 5. d5 {[%clk 0:02:53]}  Nb8 {[%clk 0:02:41]} 6. Qd2 {[%clk 0:02:50]}  Bg7 {[%clk 0:02:41]} 7. Bh6 {[%clk 0:02:50]}  O-O {[%clk 0:02:36]} 8. h4 {[%clk 0:02:44]}  e6 {[%clk 0:02:29]} 9. dxe6 {[%clk 0:02:42]}  fxe6 {[%clk 0:02:16]} 10. Bg5 {[%clk 0:02:20]}  Qe8 {[%clk 0:02:13]} 11. e4 {[%clk 0:02:16]}  Nbd7 {[%clk 0:01:56]} 12. O-O-O {[%clk 0:02:13]}  a6 {[%clk 0:01:50]} 13. Bd3 {[%clk 0:02:01]}  b5 {[%clk 0:01:49]} 14. e5 {[%clk 0:02:01]}  b4 {[%clk 0:01:36]} 15. exf6 {[%clk 0:01:57]}  bxc3 {[%clk 0:01:34]} 16. Qxc3 {[%clk 0:01:58]}  Nxf6 {[%clk 0:01:28]} 17. Qxc7 {[%clk 0:01:57]}  Qa4 {[%clk 0:01:16]} 18. Kb1 {[%clk 0:01:27]}  Nd5 {[%clk 0:01:03]} 19. Qc4 {[%clk 0:01:22]}  Qa5 {[%clk 0:00:34]} 20. Bd2 {[%clk 0:00:57]}  Qb6 {[%clk 0:00:34]} 21. Qb3 {[%clk 0:00:54]}  Qxf2 {[%clk 0:00:34]} 22. h5 {[%clk 0:00:48]}  Bd7 {[%clk 0:00:23]} 23. hxg6 {[%clk 0:00:35]}  Rab8 {[%clk 0:00:23]} 24. gxh7+ {[%clk 0:00:30]}  Kh8 {[%clk 0:00:23]} 25. Nh4 {[%clk 0:00:31]}  Ne7 {[%clk 0:00:09]} 26. Bb4 {[%clk 0:00:21]}  a5 {[%clk 0:00:07]} 27. Bxd6 {[%clk 0:00:18]}  Rxb3 {[%clk 0:00:08]} 28. axb3 {[%clk 0:00:19]}  Be8 {[%clk 0:00:03]} 29. Bxe7 {[%clk 0:00:18]}  Rf4 {[%clk 0:00:03]} 30. Bg5 {[%clk 0:00:15]}  Qd4 {[%clk 0:00:03]} 31. c3 {[%clk 0:00:15]}  Qe5 {[%clk 0:00:03]} 32. Bxf4 {[%clk 0:00:15]}  Qxf4 {[%clk 0:00:03]} 33. Bg6 {[%clk 0:00:15]}  Qf8 {[%clk 0:00:01]} 34. Rdf1 {[%clk 0:00:14]}  Qe7 {[%clk 0:00:01]} 35. Rf3 {[%clk 0:00:13]}  e5 {[%clk 0:00:01]} 36. Bxe8 {[%clk 0:00:13]}  Qxe8 {[%clk 0:00:01]} 37. Rg3 {[%clk 0:00:14]}  Bf6 {[%clk 0:00:01]} 38. Ng6+ {[%clk 0:00:14]}  Kg7 {[%clk 0:00:02]} 39. h8=Q+ {[%clk 0:00:14]} 1-0


[Site "https://www.chess.com"]

[Event "Titled Tuesday Blitz November 15 Early 2022"]
[White "Budrewicz, Krzysztof"]
[Black "Ilkhomi, Jaloliddin"]
[WhiteFideId "1127950"]
[BlackFideId "14700948"]
[WhiteElo "2187"]
[BlackElo "2045"]
[Result "1-0"]
[Round "10"]
[TimeControl "180+1"]
[Date "2022.11.16"]
[WhiteClock "0:01:04"]
[BlackClock "0:00:56"]

1. d4 {[%clk 0:03:00]}  Nf6 {[%clk 0:02:58]} 2. c4 {[%clk 0:03:00]}  e6 {[%clk 0:02:57]} 3. Nc3 {[%clk 0:02:59]}  Bb4 {[%clk 0:02:58]} 4. e3 {[%clk 0:02:59]}  O-O {[%clk 0:02:57]} 5. Ne2 {[%clk 0:02:59]}  b6 {[%clk 0:02:56]} 6. a3 {[%clk 0:03:00]}  Bxc3+ {[%clk 0:02:56]} 7. Nxc3 {[%clk 0:03:00]}  Bb7 {[%clk 0:02:56]} 8. Bd3 {[%clk 0:03:00]}  d5 {[%clk 0:02:56]} 9. O-O {[%clk 0:02:59]}  Ne4 {[%clk 0:02:55]} 10. Bxe4 {[%clk 0:02:41]}  dxe4 {[%clk 0:02:50]} 11. b4 {[%clk 0:02:42]}  Nd7 {[%clk 0:02:49]} 12. Bb2 {[%clk 0:02:42]}  Qg5 {[%clk 0:02:42]} 13. d5 {[%clk 0:02:37]}  exd5 {[%clk 0:02:37]} 14. Nxd5 {[%clk 0:02:34]}  Bxd5 {[%clk 0:02:32]} 15. Qxd5 {[%clk 0:02:30]}  Qxd5 {[%clk 0:02:32]} 16. cxd5 {[%clk 0:02:30]}  Rfd8 {[%clk 0:02:33]} 17. Rac1 {[%clk 0:02:28]}  Rac8 {[%clk 0:02:29]} 18. Rfd1 {[%clk 0:02:25]}  f5 {[%clk 0:02:22]} 19. g4 {[%clk 0:02:22]}  g6 {[%clk 0:02:22]} 20. gxf5 {[%clk 0:02:22]}  gxf5 {[%clk 0:02:22]} 21. Kh1 {[%clk 0:02:17]}  Kf7 {[%clk 0:02:23]} 22. Rc6 {[%clk 0:02:13]}  Rg8 {[%clk 0:01:56]} 23. Rdc1 {[%clk 0:02:09]}  Ke7 {[%clk 0:01:52]} 24. Rxc7 {[%clk 0:01:59]}  Rxc7 {[%clk 0:01:53]} 25. Rxc7 {[%clk 0:01:59]}  Kd6 {[%clk 0:01:53]} 26. Rxa7 {[%clk 0:01:58]}  Ne5 {[%clk 0:01:52]} 27. Bxe5+ {[%clk 0:01:53]}  Kxe5 {[%clk 0:01:53]} 28. Rxh7 {[%clk 0:01:52]}  Kxd5 {[%clk 0:01:51]} 29. Ra7 {[%clk 0:01:40]}  Kc4 {[%clk 0:01:48]} 30. Rd7 {[%clk 0:01:36]}  Kb3 {[%clk 0:01:29]} 31. Rd6 {[%clk 0:01:35]}  Rb8 {[%clk 0:01:25]} 32. Rd5 {[%clk 0:01:23]}  Kxa3 {[%clk 0:01:24]} 33. b5 {[%clk 0:01:23]}  Kb4 {[%clk 0:01:05]} 34. Rxf5 {[%clk 0:01:22]}  Kc4 {[%clk 0:01:06]} 35. h4 {[%clk 0:01:21]}  Kd3 {[%clk 0:01:03]} 36. Kg2 {[%clk 0:01:18]}  Ke2 {[%clk 0:01:04]} 37. Kg3 {[%clk 0:01:16]}  Rg8+ {[%clk 0:01:04]} 38. Kf4 {[%clk 0:01:16]}  Kxf2 {[%clk 0:01:05]} 39. Kxe4+ {[%clk 0:01:16]}  Ke2 {[%clk 0:01:06]} 40. h5 {[%clk 0:01:16]}  Rg4+ {[%clk 0:01:05]} 41. Kd5 {[%clk 0:01:13]}  Kxe3 {[%clk 0:01:06]} 42. Kc6 {[%clk 0:01:11]}  Ke4 {[%clk 0:01:06]} 43. Rf6 {[%clk 0:01:08]}  Ke5 {[%clk 0:01:06]} 44. Rh6 {[%clk 0:01:05]}  Rb4 {[%clk 0:00:54]} 45. Kxb6 {[%clk 0:01:05]}  Kf5 {[%clk 0:00:55]} 46. Rh8 {[%clk 0:01:05]}  Rb1 {[%clk 0:00:55]} 47. h6 {[%clk 0:01:04]}  Kg6 {[%clk 0:00:56]} 48. Kc6 {[%clk 0:01:03]}  Rd1 {[%clk 0:00:56]} 49. b6 {[%clk 0:01:03]}  Rc1+ {[%clk 0:00:56]} 50. Kb7 {[%clk 0:01:02]}  Rb1 {[%clk 0:00:57]} 51. Kc7 {[%clk 0:01:03]}  Rc1+ {[%clk 0:00:58]} 52. Kb8 {[%clk 0:01:03]}  Rb1 {[%clk 0:00:58]} 53. b7 {[%clk 0:01:04]}  Rb2 {[%clk 0:00:57]} 54. h7 {[%clk 0:01:03]}  Kg7 {[%clk 0:00:57]} 55. Rc8 {[%clk 0:01:03]}  Kxh7 {[%clk 0:00:58]} 56. Rc7+ {[%clk 0:01:03]}  Kg6 {[%clk 0:00:56]} 57. Kc8 {[%clk 0:01:04]} 1-0


[Site "https://www.chess.com"]

[Event "Titled Tuesday Blitz November 15 Early 2022"]
[White "Clawitter, Craig"]
[Black "Flis, Pawel"]
[WhiteFideId "2023105"]
[BlackFideId "1112864"]
[WhiteElo "2199"]
[BlackElo "1817"]
[Result "1-0"]
[Round "10"]
[TimeControl "180+1"]
[Date "2022.11.16"]
[WhiteClock "0:00:13"]
[BlackClock "0:00:03"]

1. e4 {[%clk 0:03:00]}  c5 {[%clk 0:02:47]} 2. Nf3 {[%clk 0:03:00]}  d6 {[%clk 0:02:47]} 3. d4 {[%clk 0:03:00]}  Nf6 {[%clk 0:02:48]} 4. Nc3 {[%clk 0:02:59]}  cxd4 {[%clk 0:02:48]} 5. Nxd4 {[%clk 0:02:58]}  a6 {[%clk 0:02:49]} 6. Be3 {[%clk 0:02:55]}  e5 {[%clk 0:02:49]} 7. Nb3 {[%clk 0:02:53]}  Be6 {[%clk 0:02:49]} 8. f3 {[%clk 0:02:50]}  Be7 {[%clk 0:02:49]} 9. Qd2 {[%clk 0:02:50]}  O-O {[%clk 0:02:49]} 10. g4 {[%clk 0:02:48]}  Nbd7 {[%clk 0:02:49]} 11. O-O-O {[%clk 0:02:47]}  b5 {[%clk 0:02:49]} 12. Rg1 {[%clk 0:02:48]}  b4 {[%clk 0:02:45]} 13. Nd5 {[%clk 0:02:47]}  Bxd5 {[%clk 0:02:45]} 14. exd5 {[%clk 0:02:48]}  Nb6 {[%clk 0:02:45]} 15. Na5 {[%clk 0:02:45]}  Nfxd5 {[%clk 0:02:03]} 16. Nc6 {[%clk 0:02:30]}  Qc7 {[%clk 0:02:02]} 17. Nxe7+ {[%clk 0:02:29]}  Qxe7 {[%clk 0:01:44]} 18. Bxb6 {[%clk 0:02:28]}  Nxb6 {[%clk 0:01:44]} 19. Qxd6 {[%clk 0:02:29]}  Qg5+ {[%clk 0:01:10]} 20. Qd2 {[%clk 0:02:28]}  Qe7 {[%clk 0:00:52]} 21. Bd3 {[%clk 0:02:18]}  Rad8 {[%clk 0:00:46]} 22. Qf2 {[%clk 0:01:59]}  Nd5 {[%clk 0:00:39]} 23. Bxa6 {[%clk 0:01:49]}  Ra8 {[%clk 0:00:27]} 24. Bc4 {[%clk 0:01:33]}  Nf4 {[%clk 0:00:26]} 25. Rge1 {[%clk 0:01:19]}  Rfd8 {[%clk 0:00:18]} 26. Rxd8+ {[%clk 0:01:01]}  Rxd8 {[%clk 0:00:19]} 27. Rd1 {[%clk 0:00:54]}  Rxd1+ {[%clk 0:00:15]} 28. Kxd1 {[%clk 0:00:54]}  g6 {[%clk 0:00:14]} 29. Qb6 {[%clk 0:00:36]}  Qd7+ {[%clk 0:00:12]} 30. Kc1 {[%clk 0:00:24]}  Qc8 {[%clk 0:00:12]} 31. Qxb4 {[%clk 0:00:19]}  Qc6 {[%clk 0:00:10]} 32. Qb3 {[%clk 0:00:16]}  Kg7 {[%clk 0:00:06]} 33. a4 {[%clk 0:00:15]}  Qc5 {[%clk 0:00:04]} 34. Kb1 {[%clk 0:00:15]}  Qg1+ {[%clk 0:00:04]} 35. Ka2 {[%clk 0:00:15]}  Qxh2 {[%clk 0:00:04]} 36. a5 {[%clk 0:00:15]}  Qg1 {[%clk 0:00:03]} 37. Qb6 {[%clk 0:00:13]} 1-0


[Site "https://www.chess.com"]

[Event "Titled Tuesday Blitz November 15 Early 2022"]
[White "Cramling Bellon, Anna"]
[Black "Broca Jimenez, Fernando"]
[WhiteFideId "32009232"]
[BlackFideId "5104742"]
[WhiteElo "1972"]
[BlackElo "2062"]
[Result "1-0"]
[Round "10"]
[TimeControl "180+1"]
[Date "2022.11.16"]
[WhiteClock "0:00:04"]
[BlackClock "0:01:27"]

1. d4 {[%clk 0:03:00]}  Nf6 {[%clk 0:02:59]} 2. c4 {[%clk 0:02:59]}  g6 {[%clk 0:02:59]} 3. Nc3 {[%clk 0:02:56]}  Bg7 {[%clk 0:03:00]} 4. e4 {[%clk 0:02:55]}  d6 {[%clk 0:03:00]} 5. h3 {[%clk 0:02:55]}  O-O {[%clk 0:03:01]} 6. Nf3 {[%clk 0:02:54]}  c5 {[%clk 0:03:00]} 7. d5 {[%clk 0:02:54]}  e5 {[%clk 0:02:57]} 8. Bd3 {[%clk 0:02:47]}  Nh5 {[%clk 0:02:54]} 9. g3 {[%clk 0:02:43]}  Qe8 {[%clk 0:02:52]} 10. Nb5 {[%clk 0:02:36]}  Qd8 {[%clk 0:02:51]} 11. Bd2 {[%clk 0:02:27]}  a6 {[%clk 0:02:52]} 12. Nc3 {[%clk 0:02:27]}  Qe8 {[%clk 0:02:52]} 13. Be2 {[%clk 0:02:20]}  Nd7 {[%clk 0:02:41]} 14. Ng5 {[%clk 0:02:05]}  Nhf6 {[%clk 0:02:40]} 15. g4 {[%clk 0:02:05]}  h6 {[%clk 0:02:34]} 16. Nf3 {[%clk 0:02:05]}  Qe7 {[%clk 0:02:33]} 17. g5 {[%clk 0:01:57]}  hxg5 {[%clk 0:02:28]} 18. Bxg5 {[%clk 0:01:58]}  Qe8 {[%clk 0:02:26]} 19. Qd2 {[%clk 0:01:56]}  Nh7 {[%clk 0:02:26]} 20. Bh6 {[%clk 0:01:55]}  Ndf6 {[%clk 0:02:21]} 21. O-O-O {[%clk 0:01:53]}  Nh5 {[%clk 0:02:21]} 22. Rdg1 {[%clk 0:01:38]}  Qe7 {[%clk 0:02:15]} 23. Bxg7 {[%clk 0:00:48]}  Kxg7 {[%clk 0:02:12]} 24. h4 {[%clk 0:00:39]}  Qf6 {[%clk 0:02:09]} 25. Ng5 {[%clk 0:00:36]}  Nxg5 {[%clk 0:02:01]} 26. hxg5 {[%clk 0:00:36]}  Qf4 {[%clk 0:01:58]} 27. Bxh5 {[%clk 0:00:36]}  Qxd2+ {[%clk 0:01:58]} 28. Kxd2 {[%clk 0:00:37]}  gxh5 {[%clk 0:01:57]} 29. Rxh5 {[%clk 0:00:37]}  Bd7 {[%clk 0:01:51]} 30. Rgh1 {[%clk 0:00:33]}  Rh8 {[%clk 0:01:50]} 31. Ke3 {[%clk 0:00:29]}  Rxh5 {[%clk 0:01:48]} 32. Rxh5 {[%clk 0:00:29]}  Kg6 {[%clk 0:01:49]} 33. Rh6+ {[%clk 0:00:24]}  Kxg5 {[%clk 0:01:49]} 34. Rxd6 {[%clk 0:00:25]}  Bg4 {[%clk 0:01:46]} 35. f3 {[%clk 0:00:14]}  Bh3 {[%clk 0:01:45]} 36. Ne2 {[%clk 0:00:08]}  f6 {[%clk 0:01:37]} 37. f4+ {[%clk 0:00:07]}  exf4+ {[%clk 0:01:35]} 38. Nxf4 {[%clk 0:00:08]}  Bg4 {[%clk 0:01:35]} 39. Ne6+ {[%clk 0:00:07]}  Kg6 {[%clk 0:01:33]} 40. Nxc5 {[%clk 0:00:05]}  Rc8 {[%clk 0:01:30]} 41. b4 {[%clk 0:00:04]}  b5 {[%clk 0:01:28]} 42. cxb5 {[%clk 0:00:03]}  axb5 {[%clk 0:01:28]} 43. Rb6 {[%clk 0:00:04]}  Re8 {[%clk 0:01:28]} 44. Rxb5 {[%clk 0:00:04]}  f5 {[%clk 0:01:28]} 45. Kf4 {[%clk 0:00:04]}  Bh3 {[%clk 0:01:27]} 46. Rb6+ {[%clk 0:00:04]}  Kh5 {[%clk 0:01:27]} 47. exf5 {[%clk 0:00:04]}  Re1 {[%clk 0:01:26]} 48. Ne6 {[%clk 0:00:04]}  Rf1+ {[%clk 0:01:27]} 49. Ke5 {[%clk 0:00:04]}  Rf2 {[%clk 0:01:27]} 50. Rb8 {[%clk 0:00:03]}  Rxf5+ {[%clk 0:01:27]} 51. Kd6 {[%clk 0:00:04]}  Rf2 {[%clk 0:01:28]} 52. Rh8+ {[%clk 0:00:04]}  Kg4 {[%clk 0:01:28]} 53. Nc5 {[%clk 0:00:03]}  Rf6+ {[%clk 0:01:27]} 54. Kc7 {[%clk 0:00:03]}  Rf7+ {[%clk 0:01:27]} 55. Nd7 {[%clk 0:00:03]}  Kf4 {[%clk 0:01:27]} 56. Rxh3 {[%clk 0:00:03]}  Kg4 {[%clk 0:01:27]} 57. Rd3 {[%clk 0:00:03]}  Kf4 {[%clk 0:01:27]} 58. Rd4+ {[%clk 0:00:04]}  Ke3 {[%clk 0:01:26]} 59. Rc4 {[%clk 0:00:04]}  Kd3 {[%clk 0:01:27]} 60. Rc6 {[%clk 0:00:04]}  Rf1 {[%clk 0:01:26]} 61. Kd6 {[%clk 0:00:05]}  Rc1 {[%clk 0:01:27]} 62. Rxc1 {[%clk 0:00:04]} 1-0


[Site "https://www.chess.com"]

[Event "Titled Tuesday Blitz November 15 Early 2022"]
[White "D`Arruda, Ricardo D."]
[Black "Szpar, Milosz"]
[WhiteFideId "100692"]
[BlackFideId "1184989"]
[WhiteElo "2501"]
[BlackElo "2422"]
[Result "0-1"]
[Round "10"]
[TimeControl "180+1"]
[Date "2022.11.16"]
[WhiteClock "0:00:21"]
[BlackClock "0:01:14"]

1. d4 {[%clk 0:03:00]}  Nf6 {[%clk 0:02:59]} 2. Nf3 {[%clk 0:03:00]}  c5 {[%clk 0:02:57]} 3. d5 {[%clk 0:03:00]}  b5 {[%clk 0:02:57]} 4. a4 {[%clk 0:02:59]}  b4 {[%clk 0:02:53]} 5. c4 {[%clk 0:02:59]}  Bb7 {[%clk 0:02:51]} 6. Nbd2 {[%clk 0:02:52]}  e6 {[%clk 0:02:51]} 7. e4 {[%clk 0:02:52]}  exd5 {[%clk 0:02:52]} 8. cxd5 {[%clk 0:02:49]}  d6 {[%clk 0:02:52]} 9. Bd3 {[%clk 0:02:40]}  g6 {[%clk 0:02:51]} 10. b3 {[%clk 0:02:37]}  Bg7 {[%clk 0:02:51]} 11. Bb2 {[%clk 0:02:37]}  O-O {[%clk 0:02:51]} 12. O-O {[%clk 0:02:36]}  Nbd7 {[%clk 0:02:51]} 13. Re1 {[%clk 0:02:35]}  Re8 {[%clk 0:02:49]} 14. Qc2 {[%clk 0:02:35]}  Ng4 {[%clk 0:02:48]} 15. Bxg7 {[%clk 0:02:33]}  Kxg7 {[%clk 0:02:49]} 16. Nc4 {[%clk 0:02:31]}  Qc7 {[%clk 0:02:25]} 17. Qb2+ {[%clk 0:02:23]}  f6 {[%clk 0:02:24]} 18. h3 {[%clk 0:02:20]}  Nge5 {[%clk 0:02:24]} 19. Be2 {[%clk 0:02:05]}  Nxf3+ {[%clk 0:02:22]} 20. Bxf3 {[%clk 0:02:06]}  Ne5 {[%clk 0:02:23]} 21. Be2 {[%clk 0:02:06]}  Re7 {[%clk 0:02:17]} 22. Nd2 {[%clk 0:01:53]}  g5 {[%clk 0:02:14]} 23. g3 {[%clk 0:01:47]}  Rae8 {[%clk 0:02:11]} 24. f4 {[%clk 0:01:44]}  gxf4 {[%clk 0:02:11]} 25. gxf4 {[%clk 0:01:43]}  Ng6 {[%clk 0:02:12]} 26. Bh5 {[%clk 0:01:43]}  Nxf4 {[%clk 0:02:05]} 27. Bxe8 {[%clk 0:01:42]}  Nd3 {[%clk 0:02:05]} 28. Qb1 {[%clk 0:01:36]}  Nxe1 {[%clk 0:02:04]} 29. Qxe1 {[%clk 0:01:36]}  Rxe8 {[%clk 0:02:04]} 30. Kh2 {[%clk 0:01:13]}  Kh8 {[%clk 0:02:03]} 31. Qh4 {[%clk 0:01:09]}  Qe7 {[%clk 0:01:59]} 32. Rf1 {[%clk 0:01:08]}  Qe5+ {[%clk 0:01:59]} 33. Kh1 {[%clk 0:01:04]}  Rf8 {[%clk 0:01:45]} 34. Rf4 {[%clk 0:00:38]}  Qa1+ {[%clk 0:01:36]} 35. Kg2 {[%clk 0:00:39]}  Qb2 {[%clk 0:01:37]} 36. Rf2 {[%clk 0:00:39]}  Ba6 {[%clk 0:01:33]} 37. Qf4 {[%clk 0:00:37]}  Qe5 {[%clk 0:01:26]} 38. Qh6 {[%clk 0:00:30]}  Rg8+ {[%clk 0:01:24]} 39. Kh1 {[%clk 0:00:29]}  Qa1+ {[%clk 0:01:23]} 40. Nf1 {[%clk 0:00:28]}  Bxf1 {[%clk 0:01:23]} 41. Qxf6+ {[%clk 0:00:23]}  Qxf6 {[%clk 0:01:22]} 42. Rxf6 {[%clk 0:00:24]}  Bxh3 {[%clk 0:01:19]} 43. Rxd6 {[%clk 0:00:23]}  Bg2+ {[%clk 0:01:19]} 44. Kh2 {[%clk 0:00:23]}  Bxe4 {[%clk 0:01:20]} 45. Rd7 {[%clk 0:00:22]}  Bc2 {[%clk 0:01:17]} 46. d6 {[%clk 0:00:21]}  Bxb3 {[%clk 0:01:17]} 47. Rc7 {[%clk 0:00:22]}  Bxa4 {[%clk 0:01:17]} 48. Rxc5 {[%clk 0:00:21]}  Rd8 {[%clk 0:01:16]} 49. Ra5 {[%clk 0:00:21]}  Bc2 {[%clk 0:01:14]} 0-1


[Site "https://www.chess.com"]

[Event "Titled Tuesday Blitz November 15 Early 2022"]
[White "Dehtiarov, Roman"]
[Black "Petrovic, Aleksa"]
[WhiteFideId "14186640"]
[BlackFideId "967629"]
[WhiteElo "2200"]
[BlackElo "2224"]
[Result "1-0"]
[Round "10"]
[TimeControl "180+1"]
[Date "2022.11.16"]
[WhiteClock "0:00:28"]
[BlackClock "0:00:43"]

1. e4 {[%clk 0:03:00]}  e6 {[%clk 0:03:00]} 2. d3 {[%clk 0:03:00]}  d5 {[%clk 0:03:00]} 3. Nd2 {[%clk 0:03:01]}  Nc6 {[%clk 0:02:59]} 4. g3 {[%clk 0:03:01]}  Nf6 {[%clk 0:02:58]} 5. Bg2 {[%clk 0:03:02]}  dxe4 {[%clk 0:02:58]} 6. Nxe4 {[%clk 0:03:01]}  Nxe4 {[%clk 0:02:55]} 7. Bxe4 {[%clk 0:03:02]}  e5 {[%clk 0:02:55]} 8. Ne2 {[%clk 0:03:02]}  Bh3 {[%clk 0:02:55]} 9. Be3 {[%clk 0:02:59]}  Be7 {[%clk 0:02:53]} 10. Qd2 {[%clk 0:02:59]}  O-O {[%clk 0:02:52]} 11. Ng1 {[%clk 0:02:57]}  Be6 {[%clk 0:02:51]} 12. Bg2 {[%clk 0:02:56]}  f5 {[%clk 0:02:49]} 13. Ne2 {[%clk 0:02:55]}  g5 {[%clk 0:02:38]} 14. f4 {[%clk 0:02:51]}  gxf4 {[%clk 0:02:38]} 15. gxf4 {[%clk 0:02:52]}  Bh4+ {[%clk 0:02:37]} 16. Ng3 {[%clk 0:02:52]}  Bd5 {[%clk 0:02:20]} 17. O-O-O {[%clk 0:02:40]}  Bxa2 {[%clk 0:02:19]} 18. b3 {[%clk 0:02:14]}  exf4 {[%clk 0:02:19]} 19. Bxf4 {[%clk 0:02:15]}  Qd4 {[%clk 0:02:18]} 20. c3 {[%clk 0:02:12]}  Qb6 {[%clk 0:02:16]} 21. Bd5+ {[%clk 0:02:11]}  Kh8 {[%clk 0:02:14]} 22. Qxa2 {[%clk 0:01:58]}  a5 {[%clk 0:02:13]} 23. Bxc6 {[%clk 0:01:47]}  Qxc6 {[%clk 0:02:09]} 24. Be5+ {[%clk 0:01:47]}  Bf6 {[%clk 0:02:07]} 25. Bxf6+ {[%clk 0:01:47]}  Rxf6 {[%clk 0:02:08]} 26. c4 {[%clk 0:01:36]}  a4 {[%clk 0:02:05]} 27. b4 {[%clk 0:01:32]}  a3 {[%clk 0:02:03]} 28. Rhf1 {[%clk 0:01:25]}  b5 {[%clk 0:01:55]} 29. Rxf5 {[%clk 0:01:20]}  Rxf5 {[%clk 0:01:51]} 30. Nxf5 {[%clk 0:01:21]}  Qf6 {[%clk 0:01:50]} 31. Ne3 {[%clk 0:01:06]}  bxc4 {[%clk 0:01:42]} 32. dxc4 {[%clk 0:00:54]}  Qf4 {[%clk 0:01:22]} 33. Qa1+ {[%clk 0:00:50]}  Kg8 {[%clk 0:01:14]} 34. Rg1+ {[%clk 0:00:50]}  Kf7 {[%clk 0:01:12]} 35. Qg7+ {[%clk 0:00:50]}  Ke6 {[%clk 0:01:05]} 36. Qg4+ {[%clk 0:00:34]}  Qxg4 {[%clk 0:01:00]} 37. Rxg4 {[%clk 0:00:35]}  a2 {[%clk 0:00:58]} 38. Nc2 {[%clk 0:00:31]}  a1=Q+ {[%clk 0:00:58]} 39. Nxa1 {[%clk 0:00:31]}  Rxa1+ {[%clk 0:00:58]} 40. Kb2 {[%clk 0:00:32]}  Rh1 {[%clk 0:00:57]} 41. Rh4 {[%clk 0:00:32]}  Re1 {[%clk 0:00:50]} 42. Rh6+ {[%clk 0:00:30]}  Ke5 {[%clk 0:00:48]} 43. Rxh7 {[%clk 0:00:29]}  c5 {[%clk 0:00:43]} 44. Re7+ {[%clk 0:00:28]} 1-0


[Site "https://www.chess.com"]